bitfinex-derivatives/quotes_ETHF0:USTF0_20250316
["timestamp","ask_amount","ask_price","bid_price","bid_amount"]
[1742133733094,1.06188,1883.4,1883.3,0.0079658]
[1742133733295,1.06188,1883.4,1883.3,1.4235658]
[1742133733493,1.06188,1883.4,1883.3,0.0079658]
[1742133733699,2.43648,1883.4,1883.3,0.0079658]
[1742133733896,6.05848,1883.4,1883.3,0.0079658]
[1742133734088,1.06205,1883.1,1883.0,1.449]
[1742133734401,1.06228,1882.7,1882.6,3.2078]
[1742133734594,1.06225,1882.8,1882.6,3.2078]
[1742133734899,1.06225,1882.8,1882.7,1.449]
[1742133735282,1.06228,1882.7,1882.6,0.0079658]
[1742133735484,1.77568,1882.7,1882.6,0.0079658]
[1742133735884,3.15028,1882.7,1882.6,0.0079658]
[1742133736092,3.15028,1882.7,1882.6,1.4569658]
[1742133738489,1.06228,1882.7,1882.6,1.4569658]
[1742133740700,1.06228,1882.7,1882.6,0.0079658]
[1742133742403,4.68028,1882.7,1882.6,0.0079658]
[1742133742588,1.3516,1882.8,1882.6,0.0079658]
[1742133742787,2.41385,1882.8,1882.6,1.0702958]
[1742133742991,5.826,1882.9,1882.7,5.61704]
[1742133743199,6.88819,1882.9,1882.8,1.347]
[1742133743402,5.826,1882.9,1882.8,1.347]
[1742133743598,0.6929,1883.0,1882.8,1.347]
[1742133743901,1.06201,1883.2,1883.0,1.0621]
[1742133744099,1.06201,1883.2,1882.9,3.2078]
[1742133744100,1.06205,1883.2,1883.1,1.347]
[1742133744296,2.39395,1883.2,1883.1,1.347]
[1742133745195,1.06205,1883.2,1883.1,1.347]
[1742133748809,1.06205,1883.2,1883.1,2.40905]
[1742133748998,1.06205,1883.2,1883.1,2.7595]
[1742133750704,1.3527,1883.3,1883.1,2.7595]
[1742133750899,1.3527,1883.3,1883.2,1.3304]
[1742133750900,1.06198,1883.3,1883.2,1.3304]
[1742133751497,1.06192,1883.4,1883.2,1.3304]
[1742133751698,1.06194,1883.3,1883.2,1.3304]
[1742133751897,1.06192,1883.4,1883.2,1.3304]
[1742133752097,1.06194,1883.3,1883.2,2.39236]
[1742133752704,1.06194,1883.3,1883.2,1.3304]
[1742133753000,1.06193,1883.4,1883.2,1.3304]
[1742133753201,1.06193,1883.4,1883.3,1.06194]
[1742133753398,1.3895,1883.5,1883.3,1.06194]
[1742133753603,1.06188,1883.4,1883.3,1.06194]
[1742133754008,0.00789229,1883.6,1883.2,3.2078]
[1742133754209,0.00789229,1883.6,1883.3,3.615]
[1742133754210,1.06183,1883.5,1883.3,3.615]
[1742133754408,1.06183,1883.5,1883.4,1.06184]
[1742133755301,1.06184,1883.5,1883.4,1.06183]
[1742133756106,1.06188,1883.4,1883.3,4.67689]
[1742133756310,0.00789229,1883.6,1883.3,3.615]
[1742133756508,1.06188,1883.4,1883.3,4.67692]
[1742133757411,1.06194,1883.3,1883.2,4.26978]
[1742133757613,1.062,1883.2,1883.1,0.6914]
[1742133757809,1.06211,1883.0,1882.9,0.7235]
[1742133758111,1.06211,1883.0,1882.9,1.78567]
[1742133758812,1.06208,1883.1,1883.0,1.0621]
[1742133759110,6.88787,1883.5,1883.1,2.65514]
[1742133759411,5.826,1883.5,1883.3,3.2078]
[1742133759603,6.88786,1883.5,1883.4,0.664]
[1742133759804,6.88786,1883.5,1883.4,1.72588]
[1742133760110,5.826,1883.5,1883.4,1.72588]
[1742133760309,0.00789229,1883.6,1883.5,1.06183]
[1742133760610,1.06968229,1883.6,1883.5,4.99583]
[1742133760811,1.06968229,1883.6,1883.5,0.7262]
[1742133761208,1.06183,1883.5,1883.4,0.664]
[1742133761514,3.19203,1883.5,1883.4,0.664]
[1742133761705,1.06194,1883.3,1883.2,5.38256]
[1742133761911,1.06194,1883.3,1883.2,6.04656]
[1742133762211,1.06194,1883.3,1883.2,4.3206]
[1742133762409,1.06194,1883.3,1883.2,1.7676]
[1742133762609,1.06194,1883.3,1883.2,0.7056]
[1742133762812,1.06194,1883.3,1883.2,1.7676]
[1742133762999,1.06191,1883.4,1883.3,1.06191]
[1742133763308,1.06194,1883.3,1883.2,1.76757]
[1742133764002,0.7235,1883.5,1883.2,0.7056]
[1742133764211,0.00789229,1883.6,1883.5,1.06183]
[1742133767514,1.06966229,1883.6,1883.5,1.06183]
[1742133767715,1.06183,1883.5,1883.4,4.26963]
[1742133768217,1.06971229,1883.6,1883.5,1.06183]
[1742133768418,1.06183,1883.5,1883.4,4.26965]
[1742133768914,1.06183,1883.5,1883.4,6.8218]
[1742133769108,2.48173,1883.5,1883.4,4.26968]
[1742133769311,3.18243,1883.5,1883.4,3.2078]
[1742133769914,3.18243,1883.5,1883.4,4.26968]
[1742133770322,3.18243,1883.5,1883.4,3.2078]
[1742133770714,3.18243,1883.5,1883.4,4.5589]
[1742133770917,3.18243,1883.5,1883.4,5.62078]
[1742133771119,3.18243,1883.5,1883.4,4.5589]
[1742133772019,3.18243,1883.5,1883.4,5.62078]
[1742133772518,0.7007,1883.5,1883.4,5.62078]
[1742133773213,1.79369229,1883.6,1883.5,1.06183]
[1742133773419,1.79369229,1883.6,1883.5,2.49573]
[1742133773816,3.22079229,1883.6,1883.5,2.49573]
[1742133774318,3.22079229,1883.6,1883.5,1.4339]
[1742133775421,2.15899229,1883.6,1883.5,2.49573]
[1742133775614,0.00789229,1883.6,1883.5,2.49573]
[1742133775810,1.06966229,1883.6,1883.5,2.49573]
[1742133776214,2.48026229,1883.6,1883.5,1.4339]
[1742133778416,1.41849229,1883.6,1883.5,5.70353]
[1742133778623,1.06966229,1883.6,1883.5,5.70353]
[1742133779020,0.00789229,1883.6,1883.5,5.70353]
[1742133779837,0.00789229,1883.6,1883.5,9.31753]
[1742133780425,1.06966229,1883.6,1883.5,9.31753]
[1742133780921,1.06966229,1883.6,1883.5,8.2557]
[1742133781222,1.75876229,1883.6,1883.5,1.4339]
[1742133782323,1.75876229,1883.6,1883.3,7.5317]
[1742133782324,1.06188,1883.4,1883.3,3.2078]
[1742133782721,2.65477,1883.4,1883.0,3.2078]
[1742133782923,1.062,1883.2,1883.1,1.3387]
[1742133783418,3.1322,1883.2,1883.1,1.3387]
[1742133784239,2.4085,1883.2,1883.1,2.40075]
[1742133784429,1.062,1883.2,1883.1,2.40075]
[1742133784629,1.06197,1883.3,1883.2,1.06197]
[1742133784828,1.06197,1883.3,1883.2,2.47807]
[1742133785030,2.40842,1883.4,1883.3,1.06194]
[1742133785329,1.06188,1883.4,1883.3,2.49644]
[1742133785627,5.83389229,1883.6,1883.5,1.06183]
[1742133785822,1.06183,1883.5,1883.4,5.70414]
[1742133786129,1.06970229,1883.6,1883.5,1.06183]
[1742133786824,1.06183,1883.5,1883.4,4.26964]
[1742133787224,1.06971229,1883.6,1883.5,1.06183]
[1742133788435,1.06183,1883.5,1883.4,4.26965]
[1742133788630,1.06194,1883.3,1883.2,9.29985]
[1742133789025,1.06194,1883.3,1883.2,9.29986]
[1742133789226,1.06194,1883.3,1883.2,7.5486]
[1742133789429,1.4196,1883.3,1883.2,8.6106]
[1742133789629,2.66235229,1883.6,1883.2,7.5486]
[1742133789630,1.06186,1883.5,1883.2,7.5486]
[1742133789932,1.06186,1883.5,1883.4,4.26964]
[1742133790133,1.06969229,1883.6,1883.5,1.06183]
[1742133790335,1.06969229,1883.6,1883.5,1.75583]
[1742133790541,0.00789229,1883.6,1883.5,1.75583]
[1742133790835,1.06966229,1883.6,1883.5,1.75583]
[1742133791931,2.52166229,1883.6,1883.5,1.75583]
[1742133793035,1.06966229,1883.6,1883.5,1.75583]
[1742133793233,0.00789229,1883.6,1883.5,1.75583]
[1742133794137,1.06966229,1883.6,1883.5,1.75583]
[1742133794850,0.00789229,1883.6,1883.5,1.75583]
[1742133795727,1.06966229,1883.6,1883.5,5.36983]
[1742133795935,1.06966229,1883.6,1883.5,4.308]
[1742133796129,1.06966229,1883.6,1883.5,3.614]
[1742133796729,1.06966229,1883.6,1883.5,4.67583]
[1742133799145,1.06966229,1883.6,1883.5,3.614]
[1742133799332,1.06183,1883.5,1883.4,3.2078]
[1742133799531,1.06194,1883.3,1883.2,3.2078]
[1742133800032,2.39274,1883.3,1883.2,3.2078]
[1742133800941,2.39274,1883.3,1883.2,4.5895]
[1742133802941,2.39274,1883.3,1883.2,5.6515]
[1742133803241,1.3308,1883.3,1883.2,5.6515]
[1742133803542,1.06189,1883.4,1883.3,1.06189]
[1742133803840,1.06189,1883.4,1883.3,3.88969]
[1742133804039,0.00789229,1883.6,1883.5,1.06183]
[1742133804234,0.00789229,1883.6,1883.4,1.4117]
[1742133804539,1.06971229,1883.6,1883.5,1.06183]
[1742133804739,1.06175,1883.7,1883.6,1.06177]
[1742133805038,1.06175,1883.7,1883.6,2.47347]
[1742133806336,1.75639,1884.0,1883.9,1.0616]
[1742133806642,1.06154,1884.0,1883.9,3.2078]
[1742133807244,1.06154,1884.0,1883.9,4.5878]
[1742133807542,1.06154,1884.0,1883.9,5.64936]
[1742133808339,1.06154,1884.1,1884.0,1.06154]
[1742133808539,1.06154,1884.1,1884.0,2.44154]
[1742133808744,3.19891,1884.3,1884.2,1.06143]
[1742133809041,3.19891,1884.3,1884.2,3.2078]
[1742133809340,2.1375,1884.3,1884.2,3.2078]
[1742133809542,5.826,1884.7,1884.2,4.5473]
[1742133809740,1.06115,1884.7,1884.2,1.69342644]
[1742133809934,2.6526,1884.9,1884.4,3.2078]
[1742133810131,1.0612,1884.7,1884.5,1.06123]
[1742133810340,1.0612,1884.7,1884.5,3.09132]
[1742133810541,1.06121,1884.6,1884.5,2.0301]
[1742133810745,1.06121,1884.6,1884.5,0.6906]
[1742133810944,1.06126,1884.5,1884.4,3.613]
[1742133811143,1.06135,1884.4,1884.2,5.31371644]
[1742133811344,2.0401,1884.5,1884.3,1.06138]
[1742133811545,1.3464,1884.4,1884.3,1.06138]
[1742133812339,1.75501,1884.5,1884.3,1.06138]
[1742133812532,3.07361,1884.5,1884.4,1.06132]
[1742133812735,1.06118,1884.7,1884.5,1.06126]
[1742133812943,1.3186,1884.7,1884.6,1.06121]
[1742133813138,1.06109,1884.8,1884.7,1.06113]
[1742133813346,3.78768,1884.9,1884.8,1.06109]
[1742133813548,3.78768,1884.9,1884.6,3.8879]
[1742133813741,2.7266,1884.9,1884.8,4.26889]
[1742133813940,6.26422,1885.2,1884.8,3.2078]
[1742133814137,1.06109,1884.8,1884.7,1.06112]
[1742133814650,1.06109,1884.8,1884.7,1.06115]
[1742133815342,1.06109,1884.8,1884.6,3.8958658]
[1742133815343,1.06115,1884.7,1884.6,3.8958658]
[1742133815543,1.06114,1884.8,1884.7,1.06115]
[1742133815944,1.06114,1884.8,1884.6,3.8958658]
[1742133815945,1.06115,1884.7,1884.6,4.9570358]
[1742133816249,1.06115,1884.7,1884.6,3.2157658]
[1742133816645,1.3696,1884.9,1884.6,4.2769458]
[1742133816846,1.06114,1884.8,1884.6,4.2769458]
[1742133817046,1.3696,1884.9,1884.6,4.2769458]
[1742133817244,1.06112,1884.8,1884.7,1.06115]
[1742133817441,1.06115,1884.7,1884.6,3.2157658]
[1742133817748,1.06115,1884.7,1884.6,0.0079658]
[1742133818247,1.3696,1884.8,1884.6,3.2157658]
[1742133818441,1.408,1885.1,1884.6,6.8347658]
[1742133818640,1.3441,1884.9,1884.7,1.06111]
[1742133818947,1.75467,1885.1,1884.8,4.26889]
[1742133819244,0.6937,1885.1,1884.9,1.06104]
[1742133819444,0.6937,1885.1,1884.8,3.2078]
[1742133819650,1.06083,1885.3,1885.1,1.06091]
[1742133819848,2.0422,1885.4,1885.0,3.2078]
[1742133820052,3.10298,1885.4,1885.2,4.26863]
[1742133820252,3.10298,1885.4,1885.3,1.06081]
[1742133820449,3.10298,1885.4,1885.2,4.26863]
[1742133820652,1.06081,1885.3,1885.1,2.43989]
[1742133820843,2.40491,1885.3,1885.1,2.43989]
[1742133821249,0.6981,1885.4,1885.2,3.2078]
[1742133821450,1.75886,1885.4,1885.2,4.26864]
[1742133821747,1.75889,1885.4,1885.2,4.26867]
[1742133822155,0.6981,1885.4,1885.3,1.06081]
[1742133822452,5.826,1885.9,1885.2,6.8428]
[1742133822647,1.06059,1885.7,1885.6,3.2078]
[1742133822948,2.0964,1885.8,1885.4,3.2078]
[1742133823152,4.3273,1886.1,1885.5,6.65156224]
[1742133823353,1.06044,1886.0,1885.6,3.8766]
[1742133823554,1.06048,1885.9,1885.7,1.06055]
[1742133823849,0.7151,1886.0,1885.8,1.06053]
[1742133824052,1.77555,1886.0,1885.8,1.06051]
[1742133824244,2.17991,1886.1,1885.9,1.06048]
[1742133824446,1.1195,1886.1,1886.0,1.06042]
[1742133825460,1.06033,1886.2,1886.1,1.06036]
[1742133825957,1.06033,1886.2,1885.9,3.2078]
[1742133826153,3.2078,1886.4,1886.0,0.7083]
[1742133826459,1.06031,1886.2,1886.0,1.76868]
[1742133826654,0.6948,1886.5,1886.1,3.2078]
[1742133826852,0.6948,1886.5,1886.2,1.06029]
[1742133827058,1.06022,1886.4,1886.2,1.06029]
[1742133827356,1.06022,1886.4,1886.3,1.06025]
[1742133827551,1.75498,1886.5,1886.3,1.06025]
[1742133827752,1.7752,1886.6,1886.4,4.26795]
[1742133827952,1.7752,1886.6,1886.4,3.2078]
[1742133827953,1.06014,1886.5,1886.4,3.2078]
[1742133828150,1.06018,1886.5,1886.2,3.2078]
[1742133828464,1.06021,1886.4,1886.2,4.26807]
[1742133828755,1.06025,1886.3,1886.2,3.2078]
[1742133829056,1.06025,1886.3,1886.0,0.7083]
[1742133829057,1.06033,1886.2,1886.0,7.6031]
[1742133829255,1.06033,1886.2,1886.0,8.66349]
[1742133829557,1.06034,1886.2,1886.0,8.66351]
[1742133830159,1.06036,1886.1,1886.0,7.6031]
[1742133830360,0.714,1886.4,1886.0,7.6031]
[1742133830562,1.06036,1886.1,1886.0,7.6031]
[1742133830759,1.06036,1886.1,1886.0,10.06392]
[1742133831059,1.06033,1886.2,1886.0,10.06392]
[1742133831260,1.06033,1886.2,1886.1,1.4004]
[1742133832564,1.06036,1886.1,1886.0,6.8948]
[1742133832857,1.06036,1886.1,1886.0,3.2078]
[1742133833858,1.06036,1886.1,1886.0,4.6547]
[1742133834663,1.06033,1886.2,1886.1,1.06036]
[1742133834865,0.6742,1886.3,1886.1,2.50726]
[1742133835158,1.06029,1886.3,1886.1,2.50726]
[1742133835363,1.06025,1886.3,1886.2,5.71499]
[1742133835758,1.77424,1886.4,1886.2,4.6547]
[1742133835965,1.77424,1886.4,1886.3,1.4469]
[1742133836867,1.77424,1886.4,1886.3,2.50715]
[1742133837068,1.77424,1886.4,1886.3,1.4469]
[1742133837264,5.826,1886.5,1886.4,1.06019]
[1742133837474,0.6823,1886.7,1886.5,1.06014]
[1742133837657,1.06014,1886.5,1886.4,4.26794]
[1742133837861,1.06011,1886.6,1886.4,4.26795]
[1742133838061,1.06011,1886.6,1886.5,1.06014]
[1742133838268,0.6918,1886.9,1886.6,1.06008]
[1742133838469,1.06003,1886.7,1886.6,1.06008]
[1742133838664,0.6918,1886.9,1886.6,1.0680058]
[1742133838962,1.06,1886.8,1886.6,0.0079658]
[1742133839160,1.06,1886.8,1886.7,1.06003]
[1742133839364,3.2078,1887.1,1886.9,1.05989]
[1742133839669,1.05991,1886.9,1886.8,4.26776]
[1742133839873,1.05991,1886.9,1886.8,3.2078]
[1742133840456,1.05991,1886.9,1886.6,1.0680058]
[1742133840457,1.06003,1886.7,1886.6,0.0079658]
[1742133841266,2.46243,1886.7,1886.6,0.0079658]
[1742133842173,3.15013,1886.7,1886.6,0.0079658]
[1742133844172,1.06014,1886.5,1886.4,3.2078]
[1742133844762,1.06019,1886.4,1886.3,3.2078]
[1742133844967,1.06019,1886.4,1886.3,4.26805]
[1742133845167,1.4052,1886.6,1886.4,1.06019]
[1742133845368,1.0681058,1886.5,1886.4,1.76899]
[1742133845864,0.0079658,1886.5,1886.4,1.76899]
[1742133846070,1.05999,1886.8,1886.7,1.06003]
[1742133846273,1.05999,1886.8,1886.7,4.26783]
[1742133846468,2.43825,1886.9,1886.8,1.05997]
[1742133846668,1.05995,1886.9,1886.8,1.05997]
[1742133847172,1.3783,1887.0,1886.8,0.7088]
[1742133847381,1.05991,1886.9,1886.8,0.7088]
[1742133847682,1.3783,1887.0,1886.7,3.2078]
[1742133847683,1.05997,1886.8,1886.7,3.2078]
[1742133847977,3.14387,1886.8,1886.7,3.2078]
[1742133848167,3.14387,1886.8,1886.7,4.26783]
[1742133848366,3.14387,1886.8,1886.7,3.2078]
[1742133848763,3.14387,1886.8,1886.7,4.26783]
[1742133848969,3.14387,1886.8,1886.7,3.2078]
[1742133849169,2.0839,1886.8,1886.7,4.26783]
[1742133849365,3.2078,1887.3,1886.7,9.50774]
[1742133849569,1.05983,1887.1,1886.9,3.2078]
[1742133849771,1.05983,1887.1,1887.0,1.05985]
[1742133850078,2.13172,1887.4,1887.1,1.05976]
[1742133850275,1.05969,1887.3,1887.1,1.05976]
[1742133850580,1.05974,1887.2,1887.1,1.05976]
[1742133850871,1.3639,1887.3,1887.0,2.40192]
[1742133851077,1.0598,1887.1,1887.0,1.3421]
[1742133852271,1.0598,1887.1,1887.0,2.7743]
[1742133852669,1.05978,1887.2,1887.1,1.0598]
[1742133852866,1.0598,1887.1,1887.0,2.7743]
[1742133853075,1.05979,1887.2,1887.0,3.83411]
[1742133853278,1.0598,1887.1,1887.0,3.83411]
[1742133853472,1.05978,1887.2,1887.1,1.05979]
[1742133853674,3.37502,1887.4,1887.1,1.05979]
[1742133853675,0.72592,1887.4,1887.1,3.2078]
[1742133853870,0.72592,1887.4,1887.2,2.49191]
[1742133853871,1.78561,1887.4,1887.2,2.49191]
[1742133854275,1.05969,1887.3,1887.2,2.49191]
[1742133854476,1.07997,1887.4,1887.3,1.05969]
[1742133854779,1.07997,1887.4,1887.2,2.49194]
[1742133854780,1.05969,1887.3,1887.2,2.49194]
[1742133854974,1.05969,1887.3,1887.2,1.4401658]
[1742133855569,1.05991,1886.9,1886.8,0.35392644]
[1742133855766,1.05991,1886.9,1886.8,4.5515]
[1742133855977,5.826,1887.3,1886.8,7.86348]
[1742133856171,1.05971,1887.3,1887.1,4.26757]
[1742133856372,1.05971,1887.3,1887.2,2.7319]
[1742133857172,0.0079658,1887.4,1887.2,3.79164]
[1742133857378,1.0675958,1887.4,1887.3,1.3437]
[1742133857778,1.0675958,1887.4,1887.3,4.5515]
[1742133857974,0.0079658,1887.4,1887.3,5.61119]
[1742133858168,1.0675958,1887.4,1887.3,4.5515]
[1742133858374,0.0079658,1887.4,1887.3,1.3437]
[1742133858570,0.0079658,1887.4,1887.3,2.40339]
[1742133858775,0.0079658,1887.4,1887.3,5.61119]
[1742133859177,1.7805,1887.7,1887.5,1.05954]
[1742133859384,1.0595,1887.7,1887.6,1.4533]
[1742133860386,1.05963,1887.4,1887.3,3.2078]
[1742133861269,1.05974,1887.2,1887.1,0.0079658]
[1742133862083,1.72184,1887.2,1887.1,0.0079658]
[1742133862283,1.05991,1886.9,1886.8,1.3798]
[1742133863381,1.05987,1887.0,1886.8,1.3798]
[1742133863585,1.05991,1886.9,1886.8,1.3798]
[1742133863785,2.46581,1886.9,1886.8,1.3798]
[1742133863981,0.0079658,1887.0,1886.8,1.3798]
[1742133864180,1.0678658,1887.0,1886.8,2.43975]
[1742133864484,1.0678658,1887.0,1886.9,1.4365]
[1742133865184,1.05997,1886.8,1886.7,0.0079658]
[1742133865778,4.26777,1886.8,1886.7,0.0079658]
[1742133866082,1.05997,1886.8,1886.7,0.0079658]
[1742133868784,1.05997,1886.8,1886.7,1.3806658]
[1742133870792,9.0417658,1887.0,1886.7,1.3806658]
[1742133870793,1.05996,1886.9,1886.7,1.3806658]
[1742133870986,0.0079658,1887.0,1886.9,1.05991]
[1742133871186,0.0079658,1887.0,1886.9,3.12931]
[1742133871789,2.46463,1887.3,1887.1,1.05976]
[1742133871988,2.46463,1887.3,1887.2,2.44364]
[1742133872192,1.0596,1887.5,1887.4,1.05963]
[1742133872393,1.05955,1887.6,1887.4,4.2674]
[1742133872685,2.1188,1887.8,1887.5,1.3839]
[1742133872892,2.1188,1887.8,1887.7,1.05946]
[1742133873189,4.26715,1887.9,1887.5,2.7648]
[1742133873190,1.05937,1887.9,1887.8,1.05941]
[1742133873793,1.05934,1888.0,1887.8,1.05941]
[1742133873995,1.05934,1888.0,1887.9,1.4371]
[1742133874695,4.28942,1888.1,1887.9,2.49645]
[1742133874992,4.28942,1888.1,1888.0,1.0593]
[1742133875190,1.08159,1888.1,1888.0,1.4371]
[1742133878786,1.05935,1887.9,1887.8,3.2078]
[1742133879188,1.05935,1887.9,1887.8,4.6533]
[1742133879697,1.05935,1887.9,1887.8,1.4455]
[1742133881201,2.38405,1887.9,1887.8,1.4455]
[1742133882997,1.05935,1887.9,1887.8,1.4455]
[1742133884911,1.05941,1887.8,1887.7,0.0079658]
[1742133885493,5.67721,1887.8,1887.7,0.0079658]
[1742133885698,1.05958,1887.5,1887.4,1.4457]
[1742133888306,2.46328,1887.5,1887.4,1.4457]
[1742133889507,6.39678,1887.5,1887.4,1.4457]
[1742133889895,3.18898,1887.5,1887.4,1.4457]
[1742133890414,6.39678,1887.5,1887.4,1.4457]
[1742133891305,1.05963,1887.4,1887.3,0.0079658]
[1742133891506,1.05991,1886.9,1886.8,0.6862]
[1742133891712,1.05991,1886.9,1886.8,3.11327]
[1742133891906,1.05991,1886.9,1886.8,2.0533]
[1742133892106,1.05991,1886.9,1886.8,5.2611]
[1742133892305,1.05991,1886.9,1886.8,2.0533]
[1742133893209,2.46291,1887.0,1886.8,3.11325]
[1742133893404,2.46291,1887.0,1886.9,1.3671]
[1742133894114,5.29987,1886.8,1886.0,3.2078]
[1742133894411,1.06019,1886.4,1886.3,1.3671]
[1742133894808,1.06042,1886.0,1885.9,1.3913]
[1742133895002,1.06042,1886.0,1885.9,2.7383]
[1742133895212,1.06042,1886.0,1885.9,2.0587]
[1742133895999,2.5119458,1886.1,1885.9,3.11914]
[1742133896199,1.0603,1886.3,1886.0,3.2078]
[1742133896401,1.06031,1886.2,1886.1,1.347]
[1742133897714,1.06042,1886.0,1885.9,0.7117]
[1742133897918,1.06042,1886.0,1885.9,2.0456]
[1742133899601,2.17982,1886.0,1885.9,2.0456]
[1742133899802,2.17982,1886.0,1885.9,1.3339]
[1742133900307,1.1194,1886.0,1885.8,0.0079658]
[1742133900505,1.06076,1885.4,1885.3,0.35392644]
[1742133900812,3.2078,1885.8,1885.3,3.2078]
[1742133901022,3.2078,1885.8,1885.3,4.26859]
[1742133901313,1.06067,1885.6,1885.4,1.06076]
[1742133901513,1.0607,1885.5,1885.3,4.26859]
[1742133901718,1.0607,1885.5,1885.4,1.4]
[1742133901919,1.0607,1885.5,1885.4,2.46076]
[1742133902112,1.0607,1885.5,1885.4,1.4]
[1742133903417,1.06062,1885.7,1885.5,1.06065]
[1742133903613,1.06055,1885.8,1885.7,1.06058]
[1742133903912,1.06055,1885.8,1885.7,3.2078]
[1742133904312,1.06055,1885.8,1885.7,5.63379]
[1742133904514,4.8434,1886.0,1885.7,4.5732]
[1742133904711,1.06053,1885.8,1885.7,1.3654]
[1742133906407,1.06064,1885.6,1885.5,3.2078]
[1742133906610,1.06064,1885.6,1885.5,1.3654]
[1742133907615,1.06075,1885.5,1885.3,0.0079658]
[1742133907819,1.06075,1885.5,1885.3,5.6101658]
[1742133908013,1.06075,1885.5,1885.4,1.3336]
[1742133909217,2.51165,1885.5,1885.4,1.3336]
[1742133909417,2.51165,1885.5,1885.3,0.0079658]
[1742133909617,1.73696,1885.4,1885.3,0.0079658]
[1742133909815,3.18286,1885.4,1885.3,0.0079658]
[1742133910015,2.50666,1885.4,1885.3,0.0079658]
[1742133911719,5.71446,1885.4,1885.3,0.0079658]
[1742133912222,1.06104,1884.9,1884.8,3.2078]
[1742133913514,1.06109,1884.8,1884.7,0.0079658]
[1742133913821,2.49209,1884.8,1884.7,0.0079658]
[1742133914525,1.06109,1884.8,1884.7,0.0079658]
[1742133914720,3.733,1884.9,1884.7,4.2768758]
[1742133914940,1.06104,1884.9,1884.8,1.4604]
[1742133915424,2.4999858,1885.0,1884.8,2.52145]
[1742133915622,1.06104,1884.9,1884.8,1.4604]
[1742133915816,1.4389658,1885.0,1884.8,1.06107]
[1742133915817,0.0079658,1885.0,1884.8,1.06107]
[1742133916017,1.0689458,1885.0,1884.9,4.6074]
[1742133916213,1.0689458,1885.0,1884.9,1.3996]
[1742133916413,1.0689458,1885.0,1884.9,0.7035]
[1742133917227,1.1279658,1885.0,1884.9,1.76454]
[1742133917428,1.1279658,1885.0,1884.9,4.97234]
[1742133917624,2.1889458,1885.0,1884.9,4.97234]
[1742133917830,2.1889458,1885.0,1884.9,3.9113]
[1742133918430,1.1279658,1885.0,1884.9,4.97234]
[1742133919725,2.1889458,1885.0,1884.9,3.9113]
[1742133920233,2.1889458,1885.0,1884.9,3.2078]
[1742133921117,1.06109,1884.8,1884.7,0.0079658]
[1742133921623,1.06109,1884.8,1884.7,4.2769158]
[1742133921825,2.5348658,1885.0,1884.7,3.2157658]
[1742133922024,1.06107,1884.9,1884.8,1.06109]
[1742133922433,2.5348658,1885.0,1884.9,1.06104]
[1742133922434,2.1889858,1885.0,1884.9,1.06104]
[1742133922627,2.1889858,1885.0,1884.9,4.26884]
[1742133922628,1.1279658,1885.0,1884.9,4.26884]
[1742133923131,2.1889458,1885.0,1884.9,4.26884]
[1742133923528,2.1889458,1885.0,1884.9,3.2078]
[1742133924424,2.1889858,1885.0,1884.9,1.06104]
[1742133924723,1.06105,1884.9,1884.8,1.06105]
[1742133925124,1.06109,1884.8,1884.7,3.2157658]
[1742133926230,2.45269,1884.8,1884.7,3.2157658]
[1742133926429,2.45269,1884.8,1884.7,4.2769158]
[1742133926827,2.45269,1884.8,1884.7,3.2157658]
[1742133927027,2.45269,1884.8,1884.7,4.2769158]
[1742133927229,2.45269,1884.8,1884.7,3.2157658]
[1742133927430,2.45269,1884.8,1884.1,2.65359]
[1742133927431,9.7176,1884.8,1883.8,3.2078]
[1742133927632,5.8614,1884.2,1883.5,5.86228]
[1742133927833,1.06166,1883.8,1883.7,4.2695]
[1742133928027,1.06162,1883.9,1883.8,1.06166]
[1742133928334,4.4611,1884.1,1883.8,1.06164]
[1742133928535,1.06163,1883.9,1883.8,1.06166]
[1742133928729,1.06159,1884.0,1883.9,1.0616]
[1742133929035,1.06159,1884.0,1883.8,1.0695858]
[1742133929232,1.0616,1883.9,1883.8,1.0695858]
[1742133929429,1.0616,1883.9,1883.8,0.0079658]
[1742133930238,1.06159,1884.0,1883.9,1.06159]
[1742133930537,1.06159,1884.0,1883.8,1.0695658]
[1742133930737,1.06159,1884.0,1883.9,1.0616]
[1742133930941,1.0616,1883.9,1883.8,2.4213758]
[1742133931141,0.0079658,1884.1,1883.8,2.4213758]
[1742133931333,1.06154,1884.0,1883.9,1.3426]
[1742133931735,1.06154,1884.0,1883.9,2.4042]
[1742133931930,0.0079658,1884.1,1884.0,1.06154]
[1742133932142,1.06136,1884.4,1884.3,1.06138]
[1742133934445,1.0692858,1884.5,1884.4,1.06132]
[1742133934644,0.0079658,1884.5,1884.4,1.06132]
[1742133934945,0.0079658,1884.5,1884.3,1.06133]
[1742133935136,1.06134,1884.4,1884.3,1.06133]
[1742133935641,1.0692758,1884.5,1884.4,1.06132]
[1742133936242,1.06134,1884.4,1884.3,1.06134]
[1742133936547,0.0079658,1884.5,1884.1,8.14961644]
[1742133936548,1.0692558,1884.5,1884.4,1.06132]
[1742133937644,1.06132,1884.4,1884.3,2.48633]
[1742133939435,1.06132,1884.4,1884.3,1.425]
[1742133939640,1.06132,1884.4,1884.3,2.48638]
[1742133940548,1.06132,1884.4,1884.3,1.425]
[1742133940747,1.06132,1884.4,1884.3,2.48638]
[1742133941450,1.06132,1884.4,1884.3,1.425]
[1742133941749,1.29382,1884.4,1884.3,1.425]
[1742133942751,1.29382,1884.4,1884.3,2.48638]
[1742133943141,0.2325,1884.4,1884.3,2.48638]
[1742133943341,1.29382,1884.4,1884.3,2.48638]